[Event "*** SCC Grand Prix: Titled Tuesday Blitz"]
[Site "Chess.com"]
[Date "2020.08.11"]
[Round "3"]
[White "eightbyeightchess"]
[Black "slavenok"]
[Result "1-0"]
[WhiteElo "2451"]
[BlackElo "2712"]
[TimeControl "180+1"]
[EndTime "10:30:32 PDT"]
[Termination "eightbyeightchess won by checkmate"]

1. e4 {[%clk 0:02:24.9]} 1... c5 {[%clk 0:02:58.8]} 2. Nf3 {[%clk 0:02:25]} 2...
a6 {[%clk 0:02:59]} 3. d4 {[%clk 0:02:25.4]} 3... cxd4 {[%clk 0:02:59.9]} 4.
Nxd4 {[%clk 0:02:25.7]} 4... Nf6 {[%clk 0:03:00.4]} 5. Nc3 {[%clk 0:02:26]} 5...
e5 {[%clk 0:03:00.9]} 6. Nb3 {[%clk 0:02:24.8]} 6... Bb4 {[%clk 0:03:01.2]} 7.
Bc4 {[%clk 0:02:24.7]} 7... O-O {[%clk 0:03:00.9]} 8. O-O {[%clk 0:02:24.7]}
8... h6 {[%clk 0:03:01.4]} 9. Bd5 {[%clk 0:02:19.3]} 9... d6 {[%clk 0:02:59.9]}
10. f4 {[%clk 0:02:18.6]} 10... Bg4 {[%clk 0:02:57.9]} 11. Qe1 {[%clk
0:02:17.6]} 11... Nxd5 {[%clk 0:02:50.1]} 12. exd5 {[%clk 0:02:16.9]} 12... Nd7
{[%clk 0:02:41.9]} 13. Qg3 {[%clk 0:02:12.2]} 13... f5 {[%clk 0:02:37.2]} 14. h3
{[%clk 0:02:04.9]} 14... Bh5 {[%clk 0:02:37]} 15. fxe5 {[%clk 0:02:05.2]} 15...
Nxe5 {[%clk 0:02:29.9]} 16. Bxh6 {[%clk 0:02:03.6]} 16... Qd7 {[%clk 0:02:20]}
17. Kh1 {[%clk 0:01:53]} 17... Rac8 {[%clk 0:02:19.1]} 18. Nd4 {[%clk
0:01:50.1]} 18... Kh7 {[%clk 0:02:10]} 19. Bf4 {[%clk 0:00:58.1]} 19... Rce8
{[%clk 0:01:48.1]} 20. Ne6 {[%clk 0:00:52.2]} 20... Kg8 {[%clk 0:01:33.8]} 21.
Nxf8 {[%clk 0:00:46.8]} 21... Rxf8 {[%clk 0:01:34.7]} 22. Bxe5 {[%clk
0:00:46.8]} 22... dxe5 {[%clk 0:01:32.3]} 23. Qh4 {[%clk 0:00:47.1]} 23... Bxc3
{[%clk 0:01:28.9]} 24. bxc3 {[%clk 0:00:41.5]} 24... Bg6 {[%clk 0:01:29.3]} 25.
c4 {[%clk 0:00:41.1]} 25... f4 {[%clk 0:01:24.1]} 26. Rae1 {[%clk 0:00:38.5]}
26... Rf5 {[%clk 0:01:21.2]} 27. Qg4 {[%clk 0:00:27.3]} 27... Bh5 {[%clk
0:01:17.7]} 28. Qh4 {[%clk 0:00:27.3]} 28... Bg6 {[%clk 0:01:15.4]} 29. Qf2
{[%clk 0:00:25.7]} 29... Rh5 {[%clk 0:01:14.3]} 30. Kh2 {[%clk 0:00:24.9]} 30...
Kh7 {[%clk 0:01:11.4]} 31. Qd2 {[%clk 0:00:24]} 31... b6 {[%clk 0:01:00.1]} 32.
d6 {[%clk 0:00:21.8]} 32... Rf5 {[%clk 0:01:00.2]} 33. Re2 {[%clk 0:00:16.4]}
33... Rf6 {[%clk 0:01:00.2]} 34. Rxe5 {[%clk 0:00:15.8]} 34... Rxd6 {[%clk
0:00:56]} 35. Qxf4 {[%clk 0:00:15.9]} 35... Rd4 {[%clk 0:00:53.7]} 36. Qg3
{[%clk 0:00:14.5]} 36... Qd6 {[%clk 0:00:53.4]} 37. Rg5 {[%clk 0:00:13.2]} 37...
Qxg3+ {[%clk 0:00:49.6]} 38. Rxg3 {[%clk 0:00:14.1]} 38... Rxc4 {[%clk
0:00:50.5]} 39. Rb3 {[%clk 0:00:10]} 39... b5 {[%clk 0:00:49.7]} 40. Ra3 {[%clk
0:00:10.4]} 40... Rc6 {[%clk 0:00:48.5]} 41. Re1 {[%clk 0:00:10]} 41... Rd6
{[%clk 0:00:41.3]} 42. Rc1 {[%clk 0:00:07.8]} 42... Rc6 {[%clk 0:00:40.8]} 43.
g4 {[%clk 0:00:07]} 43... Bf7 {[%clk 0:00:40.5]} 44. Kg3 {[%clk 0:00:06.9]}
44... Bc4 {[%clk 0:00:39.5]} 45. Re3 {[%clk 0:00:07.4]} 45... b4 {[%clk
0:00:38.5]} 46. a3 {[%clk 0:00:06.9]} 46... a5 {[%clk 0:00:36]} 47. axb4 {[%clk
0:00:07.2]} 47... axb4 {[%clk 0:00:36.9]} 48. Rb1 {[%clk 0:00:07.2]} 48... Rb6
{[%clk 0:00:36.8]} 49. Re4 {[%clk 0:00:07.3]} 49... Rc6 {[%clk 0:00:36.6]} 50.
Rxb4 {[%clk 0:00:06.9]} 50... Bd5 {[%clk 0:00:36.8]} 51. Re2 {[%clk 0:00:07.1]}
51... Rc3+ {[%clk 0:00:35.4]} 52. Kh2 {[%clk 0:00:06.3]} 52... Bf3 {[%clk
0:00:34.7]} 53. Rf2 {[%clk 0:00:06.5]} 53... Bd1 {[%clk 0:00:34.4]} 54. Rbf4
{[%clk 0:00:06.8]} 54... Bxc2 {[%clk 0:00:33.3]} 55. h4 {[%clk 0:00:06.4]} 55...
Bg6 {[%clk 0:00:32.2]} 56. h5 {[%clk 0:00:06.7]} 56... Be8 {[%clk 0:00:31.8]}
57. R2f3 {[%clk 0:00:07]} 57... Rc2+ {[%clk 0:00:31.7]} 58. Kg3 {[%clk
0:00:07.4]} 58... Rc5 {[%clk 0:00:32.6]} 59. Re3 {[%clk 0:00:07.6]} 59... Bc6
{[%clk 0:00:32]} 60. Re7 {[%clk 0:00:07.4]} 60... Bd5 {[%clk 0:00:32]} 61. g5
{[%clk 0:00:06.6]} 61... Rc3+ {[%clk 0:00:29.8]} 62. Kh4 {[%clk 0:00:06.6]}
62... Bg2 {[%clk 0:00:28.8]} 63. Rff7 {[%clk 0:00:05.7]} 63... Rc4+ {[%clk
0:00:25.5]} 64. Kg3 {[%clk 0:00:05.8]} 64... Bd5 {[%clk 0:00:25.1]} 65. Rxg7+
{[%clk 0:00:06]} 65... Kh8 {[%clk 0:00:26]} 66. h6 {[%clk 0:00:05.9]} 66... Rc3+
{[%clk 0:00:23.4]} 67. Kf2 {[%clk 0:00:05.5]} 67... Rc2+ {[%clk 0:00:22.9]} 68.
Ke1 {[%clk 0:00:05.5]} 68... Rc8 {[%clk 0:00:23.8]} 69. Rh7+ {[%clk 0:00:05.5]}
69... Kg8 {[%clk 0:00:23.4]} 70. Reg7+ {[%clk 0:00:06.4]} 70... Kf8 {[%clk
0:00:23.5]} 71. Rh8+ {[%clk 0:00:07.3]} 71... Bg8 {[%clk 0:00:23.7]} 72. Rhxg8#
{[%clk 0:00:08.2]} 1-0

[Event "*** SCC Grand Prix: Titled Tuesday Blitz"]
[Site "Chess.com"]
[Date "2020.08.11"]
[Round "3"]
[White "AldokhinIvan"]
[Black "DrVelja"]
[Result "0-1"]
[WhiteElo "2524"]
[BlackElo "2771"]
[TimeControl "180+1"]
[EndTime "10:30:34 PDT"]
[Termination "DrVelja won on time"]

1. e4 {[%clk 0:02:54.2]} 1... c5 {[%clk 0:02:59.2]} 2. Nf3 {[%clk 0:02:54.2]}
2... d6 {[%clk 0:02:58.9]} 3. d4 {[%clk 0:02:55.1]} 3... cxd4 {[%clk 0:02:59.7]}
4. Nxd4 {[%clk 0:02:54.7]} 4... Nf6 {[%clk 0:03:00.6]} 5. Nc3 {[%clk 0:02:54.8]}
5... a6 {[%clk 0:03:01.1]} 6. Bg5 {[%clk 0:02:52.5]} 6... e6 {[%clk 0:02:58.6]}
7. Qd2 {[%clk 0:02:52.3]} 7... Nbd7 {[%clk 0:02:55]} 8. O-O-O {[%clk 0:02:52]}
8... Qc7 {[%clk 0:02:42.7]} 9. Kb1 {[%clk 0:02:45.9]} 9... b5 {[%clk 0:02:42.5]}
10. f3 {[%clk 0:02:30.8]} 10... Bb7 {[%clk 0:02:33.1]} 11. Bd3 {[%clk
0:02:08.7]} 11... b4 {[%clk 0:02:28.5]} 12. Nce2 {[%clk 0:02:05.9]} 12... d5
{[%clk 0:02:28.5]} 13. Ng3 {[%clk 0:01:50.7]} 13... Bd6 {[%clk 0:01:34.1]} 14.
Ngf5 {[%clk 0:01:34.3]} 14... exf5 {[%clk 0:01:29.2]} 15. Nxf5 {[%clk
0:01:35.2]} 15... O-O-O {[%clk 0:01:02.2]} 16. Nxd6+ {[%clk 0:01:34.6]} 16...
Qxd6 {[%clk 0:01:01.5]} 17. Bf4 {[%clk 0:01:35.2]} 17... Qb6 {[%clk 0:00:52.4]}
18. e5 {[%clk 0:01:13.3]} 18... Ne8 {[%clk 0:00:46.1]} 19. Bf5 {[%clk
0:00:56.1]} 19... Nc7 {[%clk 0:00:41.3]} 20. Rc1 {[%clk 0:00:47.7]} 20... Ne6
{[%clk 0:00:39.2]} 21. Bg3 {[%clk 0:00:38.7]} 21... Kb8 {[%clk 0:00:34.7]} 22.
c3 {[%clk 0:00:37.3]} 22... bxc3 {[%clk 0:00:32.4]} 23. Rxc3 {[%clk 0:00:38.2]}
23... Rc8 {[%clk 0:00:32.7]} 24. Rb3 {[%clk 0:00:37.8]} 24... Qc6 {[%clk
0:00:33.1]} 25. a3 {[%clk 0:00:23.9]} 25... Ndc5 {[%clk 0:00:24.8]} 26. Rb4
{[%clk 0:00:23.5]} 26... a5 {[%clk 0:00:23.8]} 27. Rg4 {[%clk 0:00:21.4]} 27...
Nb3 {[%clk 0:00:19.2]} 28. Qe3 {[%clk 0:00:16.3]} 28... a4 {[%clk 0:00:17.1]}
29. Bf2 {[%clk 0:00:11.9]} 29... d4 {[%clk 0:00:15.5]} 30. Qe1 {[%clk
0:00:11.8]} 30... Rhd8 {[%clk 0:00:13.4]} 31. Bd3 {[%clk 0:00:11.8]} 31... Nec5
{[%clk 0:00:11.7]} 32. Bc4 {[%clk 0:00:10.9]} 32... Qd7 {[%clk 0:00:09.8]} 33.
e6 {[%clk 0:00:10.3]} 33... fxe6 {[%clk 0:00:09.1]} 34. Bg3+ {[%clk 0:00:10.4]}
34... Ka8 {[%clk 0:00:09]} 35. Rg5 {[%clk 0:00:09.7]} 35... Bd5 {[%clk
0:00:08.5]} 36. Be2 {[%clk 0:00:07.6]} 36... d3 {[%clk 0:00:07.6]} 37. Bd1
{[%clk 0:00:07.8]} 37... Qb7 {[%clk 0:00:07.7]} 38. Qe3 {[%clk 0:00:07.6]} 38...
d2 {[%clk 0:00:07.5]} 39. Be2 {[%clk 0:00:07.1]} 39... Ne4 {[%clk 0:00:06.1]}
40. fxe4 {[%clk 0:00:05.5]} 40... Bxe4+ {[%clk 0:00:07]} 41. Ka2 {[%clk
0:00:04.1]} 41... Nc1+ {[%clk 0:00:07.4]} 42. Rxc1 {[%clk 0:00:02.6]} 42...
dxc1=N+ {[%clk 0:00:06.2]} 43. Ka1 {[%clk 0:00:02]} 43... Nb3+ {[%clk
0:00:06.7]} 44. Ka2 {[%clk 0:00:02.6]} 44... Nc1+ {[%clk 0:00:06.3]} 45. Ka1
{[%clk 0:00:01.2]} 45... Bd5 {[%clk 0:00:06.9]} 46. Kb1 {[%clk 0:00:01.3]} 46...
Nb3 {[%clk 0:00:07.8]} 47. Qd4 {[%clk 0:00:01.5]} 47... Rc1+ {[%clk 0:00:07.7]}
0-1

[Event "*** SCC Grand Prix: Titled Tuesday Blitz"]
[Site "Chess.com"]
[Date "2020.08.11"]
[Round "3"]
[White "TargetA"]
[Black "googlegoom"]
[Result "1-0"]
[WhiteElo "2598"]
[BlackElo "2386"]
[TimeControl "180+1"]
[EndTime "10:30:36 PDT"]
[Termination "TargetA won on time"]

1. d4 {[%clk 0:03:00.9]} 1... d5 {[%clk 0:03:00]} 2. c4 {[%clk 0:03:00.1]} 2...
c6 {[%clk 0:03:00.4]} 3. Nc3 {[%clk 0:02:59.7]} 3... Nf6 {[%clk 0:03:00.9]} 4.
Nf3 {[%clk 0:02:58.1]} 4... e6 {[%clk 0:03:01.1]} 5. e3 {[%clk 0:02:58.3]} 5...
Nbd7 {[%clk 0:03:00.9]} 6. Bd3 {[%clk 0:02:56.4]} 6... Bd6 {[%clk 0:03:01.1]} 7.
Qc2 {[%clk 0:02:55.7]} 7... dxc4 {[%clk 0:02:59]} 8. Bxc4 {[%clk 0:02:55.5]}
8... e5 {[%clk 0:02:58.9]} 9. O-O {[%clk 0:02:51.3]} 9... O-O {[%clk 0:02:58.1]}
10. Rd1 {[%clk 0:02:50.1]} 10... Qe7 {[%clk 0:02:58.4]} 11. e4 {[%clk
0:02:43.3]} 11... Rd8 {[%clk 0:02:54.5]} 12. Ng5 {[%clk 0:02:34.2]} 12... Rf8
{[%clk 0:02:53.9]} 13. d5 {[%clk 0:02:18.8]} 13... Nb6 {[%clk 0:02:32.7]} 14.
Bb3 {[%clk 0:02:14.9]} 14... h6 {[%clk 0:02:31.7]} 15. Nf3 {[%clk 0:02:11.7]}
15... Bg4 {[%clk 0:02:29.1]} 16. Be3 {[%clk 0:02:08.2]} 16... cxd5 {[%clk
0:02:00.5]} 17. Bxd5 {[%clk 0:01:55.6]} 17... Nbxd5 {[%clk 0:01:45]} 18. Nxd5
{[%clk 0:01:56.5]} 18... Nxd5 {[%clk 0:01:42.4]} 19. Rxd5 {[%clk 0:01:57.4]}
19... Bxf3 {[%clk 0:01:33.6]} 20. gxf3 {[%clk 0:01:58.3]} 20... Rac8 {[%clk
0:01:32.9]} 21. Qd3 {[%clk 0:01:51.4]} 21... Bb8 {[%clk 0:01:04.1]} 22. Kh1
{[%clk 0:01:37.3]} 22... Rfd8 {[%clk 0:00:57.1]} 23. Rg1 {[%clk 0:01:35.1]}
23... Kh8 {[%clk 0:00:52.3]} 24. Rg3 {[%clk 0:01:18.2]} 24... b6 {[%clk
0:00:49.6]} 25. a3 {[%clk 0:01:15.6]} 25... Rd6 {[%clk 0:00:45.6]} 26. Qb5
{[%clk 0:01:09.1]} 26... Rcd8 {[%clk 0:00:43.2]} 27. Rxd6 {[%clk 0:00:59]} 27...
Qxd6 {[%clk 0:00:42.3]} 28. Kg2 {[%clk 0:00:54.7]} 28... Qd7 {[%clk 0:00:34.7]}
29. Qb3 {[%clk 0:00:49.8]} 29... Bd6 {[%clk 0:00:31.7]} 30. a4 {[%clk
0:00:41.3]} 30... Kh7 {[%clk 0:00:29.8]} 31. Qc4 {[%clk 0:00:38.1]} 31... Rc8
{[%clk 0:00:27]} 32. Qd5 {[%clk 0:00:37.8]} 32... Qe7 {[%clk 0:00:26.6]} 33. b3
{[%clk 0:00:35.2]} 33... Bc5 {[%clk 0:00:26.9]} 34. f4 {[%clk 0:00:30.4]} 34...
Bxe3 {[%clk 0:00:24]} 35. fxe3 {[%clk 0:00:29.7]} 35... Rd8 {[%clk 0:00:16.6]}
36. Qxe5 {[%clk 0:00:25.3]} 36... Qxe5 {[%clk 0:00:14.7]} 37. fxe5 {[%clk
0:00:26.2]} 37... Re8 {[%clk 0:00:15.3]} 38. Rf3 {[%clk 0:00:23.4]} 38... Rxe5
{[%clk 0:00:15.6]} 39. Rxf7 {[%clk 0:00:23.3]} 39... Rxe4 {[%clk 0:00:16.1]} 40.
Kf3 {[%clk 0:00:23.6]} 40... Rb4 {[%clk 0:00:12.3]} 41. Rxa7 {[%clk 0:00:21.9]}
41... Rxb3 {[%clk 0:00:12.8]} 42. h4 {[%clk 0:00:21.2]} 42... Kg6 {[%clk
0:00:12.4]} 43. Kf4 {[%clk 0:00:19.9]} 43... Rb4+ {[%clk 0:00:10.4]} 44. e4
{[%clk 0:00:20]} 44... Kh5 {[%clk 0:00:08.6]} 45. Rxg7 {[%clk 0:00:18.7]} 45...
Rxa4 {[%clk 0:00:07.6]} 46. Kf5 {[%clk 0:00:17.9]} 46... Kxh4 {[%clk 0:00:06.6]}
47. e5 {[%clk 0:00:17.4]} 47... Ra1 {[%clk 0:00:05.6]} 48. e6 {[%clk 0:00:17.2]}
48... b5 {[%clk 0:00:05.2]} 49. e7 {[%clk 0:00:17.1]} 49... Rf1+ {[%clk
0:00:05.6]} 50. Kg6 {[%clk 0:00:15.6]} 50... Re1 {[%clk 0:00:05.8]} 51. Kf7
{[%clk 0:00:16]} 51... b4 {[%clk 0:00:05.8]} 52. Rg6 {[%clk 0:00:16.2]} 52...
Rxe7+ {[%clk 0:00:04]} 53. Kxe7 {[%clk 0:00:17.1]} 53... h5 {[%clk 0:00:04.7]}
54. Ke6 {[%clk 0:00:13.4]} 54... b3 {[%clk 0:00:04.9]} 55. Kf5 {[%clk
0:00:13.6]} 55... b2 {[%clk 0:00:03.3]} 56. Rb6 {[%clk 0:00:14.1]} 56... Kg3
{[%clk 0:00:02.9]} 57. Rb3+ {[%clk 0:00:14.1]} 1-0

[Event "*** SCC Grand Prix: Titled Tuesday Blitz"]
[Site "Chess.com"]
[Date "2020.08.11"]
[Round "3"]
[White "nrvisakh"]
[Black "IANOV0007"]
[Result "1-0"]
[WhiteElo "2757"]
[BlackElo "2486"]
[TimeControl "180+1"]
[EndTime "10:30:41 PDT"]
[Termination "nrvisakh won on time"]

1. e4 {[%clk 0:02:41.9]} 1... d6 {[%clk 0:02:59]} 2. d4 {[%clk 0:02:38.5]} 2...
Nf6 {[%clk 0:02:58.5]} 3. Nc3 {[%clk 0:02:39.4]} 3... c6 {[%clk 0:02:58]} 4. Be3
{[%clk 0:02:37.8]} 4... Qb6 {[%clk 0:02:57.6]} 5. Rb1 {[%clk 0:02:35.6]} 5...
Ng4 {[%clk 0:02:55.9]} 6. Bc1 {[%clk 0:02:31.7]} 6... e5 {[%clk 0:02:54.5]} 7.
Nf3 {[%clk 0:02:31.6]} 7... Nd7 {[%clk 0:02:50.5]} 8. h3 {[%clk 0:02:31.2]} 8...
Ngf6 {[%clk 0:02:49.8]} 9. Be3 {[%clk 0:02:31.2]} 9... Qc7 {[%clk 0:02:48.2]}
10. Bc4 {[%clk 0:02:30.9]} 10... Be7 {[%clk 0:02:47.9]} 11. a4 {[%clk
0:02:27.3]} 11... O-O {[%clk 0:02:46.4]} 12. O-O {[%clk 0:02:27.3]} 12... b6
{[%clk 0:02:45.5]} 13. Re1 {[%clk 0:02:25.4]} 13... a6 {[%clk 0:02:45.3]} 14.
Bb3 {[%clk 0:02:24.2]} 14... h6 {[%clk 0:02:40.9]} 15. Nh4 {[%clk 0:02:23]}
15... Re8 {[%clk 0:02:36.5]} 16. Qf3 {[%clk 0:02:20.1]} 16... Nf8 {[%clk
0:02:33.6]} 17. Rbd1 {[%clk 0:02:15]} 17... Be6 {[%clk 0:02:32]} 18. Nf5 {[%clk
0:02:12.1]} 18... Bxb3 {[%clk 0:02:25.1]} 19. cxb3 {[%clk 0:02:11.6]} 19... Ng6
{[%clk 0:02:16.8]} 20. h4 {[%clk 0:02:10.2]} 20... b5 {[%clk 0:02:04.5]} 21. h5
{[%clk 0:02:08.5]} 21... Nf8 {[%clk 0:01:45.8]} 22. Bxh6 {[%clk 0:02:07.8]}
22... Ne6 {[%clk 0:01:36.8]} 23. Be3 {[%clk 0:01:46.6]} 23... Bf8 {[%clk
0:01:29.9]} 24. d5 {[%clk 0:01:37.3]} 24... cxd5 {[%clk 0:01:26.2]} 25. exd5
{[%clk 0:01:37.3]} 25... Nc5 {[%clk 0:01:18.3]} 26. Bxc5 {[%clk 0:01:36.8]}
26... Qxc5 {[%clk 0:01:17]} 27. h6 {[%clk 0:01:36.8]} 27... g6 {[%clk
0:01:13.5]} 28. Ng3 {[%clk 0:01:28]} 28... Nh7 {[%clk 0:01:09.2]} 29. Nge4
{[%clk 0:01:27.3]} 29... Qc7 {[%clk 0:01:07]} 30. axb5 {[%clk 0:01:26.5]} 30...
f5 {[%clk 0:01:05.8]} 31. Nd2 {[%clk 0:01:25.3]} 31... Bxh6 {[%clk 0:01:04.4]}
32. Nc4 {[%clk 0:01:24.6]} 32... e4 {[%clk 0:01:01.2]} 33. Qg3 {[%clk
0:01:23.6]} 33... Qg7 {[%clk 0:00:51.3]} 34. Nxd6 {[%clk 0:01:21]} 34... Rf8
{[%clk 0:00:47.6]} 35. b6 {[%clk 0:01:11]} 35... Nf6 {[%clk 0:00:42.8]} 36. Nc4
{[%clk 0:01:06.4]} 36... Nh5 {[%clk 0:00:40.9]} 37. Qe5 {[%clk 0:01:06.2]} 37...
Qf7 {[%clk 0:00:28.4]} 38. Qe6 {[%clk 0:00:59.3]} 38... Nf4 {[%clk 0:00:24.4]}
39. Qxf7+ {[%clk 0:00:59.1]} 39... Kxf7 {[%clk 0:00:23.7]} 40. d6 {[%clk
0:00:57.7]} 40... Rfd8 {[%clk 0:00:20.3]} 41. b7 {[%clk 0:00:51.5]} 41... Rab8
{[%clk 0:00:17.7]} 42. Ne5+ {[%clk 0:00:51.5]} 42... Ke6 {[%clk 0:00:14.8]} 43.
Nc6 {[%clk 0:00:51.1]} 43... Kd7 {[%clk 0:00:13.7]} 44. Nxb8+ {[%clk 0:00:33.7]}
44... Rxb8 {[%clk 0:00:13]} 45. Na4 {[%clk 0:00:34.1]} 45... Ne6 {[%clk
0:00:10.2]} 46. b4 {[%clk 0:00:26.3]} 46... Rxb7 {[%clk 0:00:09.9]} 47. Nc5+
{[%clk 0:00:26.5]} 47... Nxc5 {[%clk 0:00:09.8]} 48. bxc5 {[%clk 0:00:27.4]}
48... Bg5 {[%clk 0:00:09]} 49. Ra1 {[%clk 0:00:25.2]} 49... Rb5 {[%clk 0:00:07]}
50. b4 {[%clk 0:00:24.1]} 50... Rxb4 {[%clk 0:00:06.1]} 51. Rxa6 {[%clk
0:00:23.4]} 51... Rc4 {[%clk 0:00:06.1]} 52. Ra7+ {[%clk 0:00:22.9]} 52... Ke6
{[%clk 0:00:05.9]} 53. Rc7 {[%clk 0:00:20.5]} 53... Bf4 {[%clk 0:00:03.9]} 54.
Re7+ {[%clk 0:00:18.4]} 54... Kf6 {[%clk 0:00:03.8]} 55. Re8 {[%clk 0:00:18.4]}
55... Rxc5 {[%clk 0:00:03]} 56. d7 {[%clk 0:00:18.2]} 56... Bc7 {[%clk
0:00:03.1]} 57. d8=Q+ {[%clk 0:00:18.4]} 57... Bxd8 {[%clk 0:00:02.8]} 58. Rxd8
{[%clk 0:00:19.3]} 58... Rc2 {[%clk 0:00:02.8]} 59. Red1 {[%clk 0:00:19.4]}
59... Kg5 {[%clk 0:00:02.4]} 60. R8d2 {[%clk 0:00:19.6]} 60... Rc3 {[%clk
0:00:01.6]} 61. Re2 {[%clk 0:00:19.7]} 1-0

[Event "*** SCC Grand Prix: Titled Tuesday Blitz"]
[Site "Chess.com"]
[Date "2020.08.11"]
[Round "3"]
[White "Vsevolod_Ovchinnikov"]
[Black "kuban1991"]
[Result "1/2-1/2"]
[WhiteElo "2446"]
[BlackElo "2730"]
[TimeControl "180+1"]
[EndTime "10:30:45 PDT"]
[Termination "Game drawn by repetition"]

1. d4 {[%clk 0:03:00.9]} 1... g6 {[%clk 0:02:59.3]} 2. c4 {[%clk 0:03:00.8]}
2... Bg7 {[%clk 0:02:58.5]} 3. Nf3 {[%clk 0:03:01.4]} 3... c5 {[%clk 0:02:57.8]}
4. d5 {[%clk 0:03:01.5]} 4... d6 {[%clk 0:02:57.9]} 5. e4 {[%clk 0:03:00.9]}
5... Nf6 {[%clk 0:02:57.9]} 6. Nc3 {[%clk 0:03:01]} 6... O-O {[%clk 0:02:58.3]}
7. Be2 {[%clk 0:03:01.6]} 7... Na6 {[%clk 0:02:58.8]} 8. O-O {[%clk 0:03:01.8]}
8... Nc7 {[%clk 0:02:59.2]} 9. a4 {[%clk 0:02:58.9]} 9... Rb8 {[%clk 0:02:59.2]}
10. Nd2 {[%clk 0:02:56.6]} 10... a6 {[%clk 0:02:58.4]} 11. a5 {[%clk 0:02:56.7]}
11... b5 {[%clk 0:02:57.7]} 12. axb6 {[%clk 0:02:57]} 12... Rxb6 {[%clk
0:02:57.7]} 13. Qc2 {[%clk 0:02:53.1]} 13... e6 {[%clk 0:02:56]} 14. b3 {[%clk
0:02:29.8]} 14... exd5 {[%clk 0:02:47.9]} 15. cxd5 {[%clk 0:02:30.7]} 15... Nb5
{[%clk 0:02:47.2]} 16. Nxb5 {[%clk 0:02:30.8]} 16... axb5 {[%clk 0:02:46.9]} 17.
Bb2 {[%clk 0:02:31.3]} 17... Re8 {[%clk 0:02:46.4]} 18. Bd3 {[%clk 0:02:25.4]}
18... Nd7 {[%clk 0:02:43.9]} 19. Bxg7 {[%clk 0:02:24.7]} 19... Kxg7 {[%clk
0:02:44.8]} 20. Ra5 {[%clk 0:02:21.3]} 20... Ne5 {[%clk 0:02:14.6]} 21. Bxb5
{[%clk 0:02:18.7]} 21... Re7 {[%clk 0:02:11.4]} 22. Rfa1 {[%clk 0:02:12.2]}
22... Reb7 {[%clk 0:02:06.4]} 23. Bf1 {[%clk 0:02:05.6]} 23... Qf6 {[%clk
0:02:00.8]} 24. Qc3 {[%clk 0:01:50.5]} 24... Bg4 {[%clk 0:01:52.8]} 25. Rc1
{[%clk 0:01:47.4]} 25... h5 {[%clk 0:01:51.8]} 26. h3 {[%clk 0:01:40.6]} 26...
Bd7 {[%clk 0:01:48.8]} 27. Qe3 {[%clk 0:01:39.6]} 27... g5 {[%clk 0:01:45.6]}
28. Be2 {[%clk 0:01:34.1]} 28... h4 {[%clk 0:01:34.9]} 29. Rf1 {[%clk
0:01:25.6]} 29... Qf4 {[%clk 0:01:27.8]} 30. Qxf4 {[%clk 0:01:23.5]} 30... gxf4
{[%clk 0:01:28.6]} 31. Rfa1 {[%clk 0:01:20.5]} 31... Kf6 {[%clk 0:01:14]} 32.
Ra6 {[%clk 0:01:19.8]} 32... Rxa6 {[%clk 0:01:07.5]} 33. Rxa6 {[%clk 0:01:20.7]}
33... Ke7 {[%clk 0:01:07.8]} 34. Ra5 {[%clk 0:01:11.1]} 34... f5 {[%clk
0:01:03.1]} 35. f3 {[%clk 0:01:01.3]} 35... fxe4 {[%clk 0:00:59.7]} 36. fxe4
{[%clk 0:01:02.2]} 36... Rb4 {[%clk 0:00:58.1]} 37. Kf2 {[%clk 0:00:50.8]} 37...
Be8 {[%clk 0:00:41.8]} 38. Ra7+ {[%clk 0:00:49]} 38... Kf6 {[%clk 0:00:36.6]}
39. Rh7 {[%clk 0:00:44.5]} 39... Kg5 {[%clk 0:00:36.5]} 40. Rh8 {[%clk 0:00:32]}
40... Bg6 {[%clk 0:00:35.4]} 41. Rd8 {[%clk 0:00:18]} 41... Nf7 {[%clk
0:00:34.9]} 42. Rg8 {[%clk 0:00:15.4]} 42... Kf6 {[%clk 0:00:34.6]} 43. Bc4
{[%clk 0:00:13.4]} 43... Ne5 {[%clk 0:00:29.5]} 44. Rf8+ {[%clk 0:00:12.2]}
44... Kg5 {[%clk 0:00:28.7]} 45. Nf3+ {[%clk 0:00:09.9]} 45... Nxf3 {[%clk
0:00:28]} 46. gxf3 {[%clk 0:00:10.3]} 46... Rb7 {[%clk 0:00:19.6]} 47. Ra8
{[%clk 0:00:10.1]} 47... Rb6 {[%clk 0:00:17.2]} 48. Ra7 {[%clk 0:00:09.3]} 48...
Kf6 {[%clk 0:00:16.8]} 49. Ke2 {[%clk 0:00:07.3]} 49... Be8 {[%clk 0:00:15.9]}
50. Rh7 {[%clk 0:00:06.6]} 50... Kg5 {[%clk 0:00:14.5]} 51. Rh8 {[%clk
0:00:06.5]} 51... Bd7 {[%clk 0:00:14.4]} 52. Rg8+ {[%clk 0:00:06.2]} 52... Kf6
{[%clk 0:00:14.1]} 53. Rh8 {[%clk 0:00:06.6]} 53... Kg5 {[%clk 0:00:14.1]} 54.
Rg8+ {[%clk 0:00:06.9]} 54... Kf6 {[%clk 0:00:13.9]} 55. Rh8 {[%clk 0:00:07.4]}
55... Kg5 {[%clk 0:00:11.2]} 1/2-1/2